bitfinex/quotes_SOLUSD_20240624
["timestamp","ask_amount","ask_price","bid_price","bid_amount"]
[1719245007191,37.8769,126.58,126.45,15.792]
[1719245007402,12.97806321,126.58,126.45,15.792]
[1719245007581,21.21697325,126.58,126.45,15.792]
[1719245007783,23.8,126.57,126.46,45.0]
[1719245009909,0.34,126.56,126.45,15.792]
[1719245010208,23.8,126.55,126.45,15.792]
[1719245010406,0.17,126.54,126.45,15.792]
[1719245010614,0.34,126.54,126.45,15.792]
[1719245011580,23.8,126.53,126.45,15.792]
[1719245011781,0.34,126.52,126.45,15.792]
[1719245014204,0.34,126.52,126.46,45.0]
[1719245015607,0.34,126.52,126.45,15.792]
[1719245015912,0.34,126.52,126.41,15.8577]
[1719245016100,0.34,126.52,126.42,6.1379]
[1719245017325,0.34,126.52,126.43,45.0]
[1719245017485,0.34,126.52,126.42,6.1379]
[1719245019323,0.34,126.52,126.43,45.0]
[1719245020395,8.24429198,126.54,126.43,45.0]
[1719245020695,15.421,126.56,126.44,0.17]
[1719245021207,21.84079639,126.56,126.43,45.0]
[1719245021397,23.8,126.55,126.43,45.0]
[1719245022097,0.34,126.54,126.43,45.0]
[1719245022295,0.34,126.54,126.42,6.1379]
[1719245022800,23.8,126.53,126.42,6.1379]
[1719245022998,0.34,126.52,126.42,6.1379]
[1719245024011,0.34,126.53,126.42,6.1379]
[1719245024205,0.34,126.53,126.43,45.0]
[1719245024514,0.34,126.53,126.42,6.1379]
[1719245025814,0.34,126.53,126.43,45.0]
[1719245026593,0.34,126.53,126.42,6.1379]
[1719245027317,0.17,126.53,126.42,6.1379]
[1719245027926,0.17,126.53,126.43,45.0]
[1719245028719,23.8,126.55,126.43,45.0]
[1719245028895,6.41979639,126.56,126.46,6.3803]
[1719245029090,16.3264,126.59,126.47,45.17]
[1719245029406,24.568841,126.59,126.47,45.17]
[1719245029928,48.368841,126.59,126.47,45.17]
[1719245030213,55.02252664,126.59,126.47,45.17]
[1719245030418,46.78008564,126.59,126.47,45.17]
[1719245031290,22.98008564,126.59,126.47,45.17]
[1719245031489,6.65368564,126.59,126.48,0.17]
[1719245031717,38.1322,126.61,126.47,45.17]
[1719245031910,6.6122,126.61,126.47,45.17]
[1719245032314,23.8,126.6,126.48,0.17]
[1719245032508,23.8,126.6,126.47,45.0]
[1719245033699,0.17,126.59,126.47,45.0]
[1719245035126,23.8,126.6,126.48,0.17]
[1719245035299,13.26653656,126.61,126.48,0.34]
[1719245035616,13.26653656,126.61,126.5,6.4378]
[1719245035825,13.26653656,126.61,126.51,45.0]
[1719245036401,6.65433656,126.61,126.51,45.0]
[1719245036704,69.84655072,126.64,126.52,0.17]
[1719245036705,29.9834,126.64,126.52,0.17]
[1719245037114,29.9834,126.64,126.51,45.0]
[1719245037314,37.8802,126.64,126.51,45.0]
[1719245037823,36.58058516,126.64,126.53,16.1877]
[1719245038008,12.78058516,126.64,126.54,45.0]
[1719245038213,6.59718516,126.64,126.55,6.4546]
[1719245038516,0.8536654,126.65,126.56,45.0]
[1719245040505,0.8536654,126.65,126.55,6.4546]
[1719245040710,0.17,126.64,126.55,6.4546]
[1719245041633,0.34,126.64,126.55,6.4546]
[1719245041803,24.14,126.64,126.56,45.0]
[1719245042517,24.14,126.64,126.55,6.4546]
[1719245042728,23.8,126.62,126.55,6.4546]
[1719245042928,0.34,126.61,126.55,6.4546]
[1719245043316,0.34,126.61,126.53,16.1877]
[1719245044349,0.8536654,126.65,126.53,16.1877]
[1719245045130,0.8536654,126.65,126.54,45.0]
[1719245045319,24.6536654,126.65,126.54,45.0]
[1719245046207,0.8536654,126.65,126.56,6.4774]
[1719245046412,0.8536654,126.65,126.57,45.0]
[1719245047332,0.17,126.64,126.57,45.0]
[1719245047530,0.34,126.64,126.53,22.5229]
[1719245047739,23.8,126.62,126.53,22.5229]
[1719245047909,0.34,126.61,126.53,22.5229]
[1719245048625,0.17,126.62,126.53,22.5229]
[1719245049020,0.17,126.62,126.54,45.0]
[1719245049503,0.17,126.62,126.53,22.5229]
[1719245049907,0.17,126.61,126.53,22.5229]
[1719245051319,23.8,126.6,126.5,22.4572]
[1719245051523,0.34,126.59,126.5,22.4572]
[1719245051724,23.8,126.58,126.47,6.3385]
[1719245051917,0.34,126.57,126.46,16.1187]
[1719245052119,23.8,126.56,126.46,16.1187]
[1719245052318,0.34,126.55,126.46,16.1187]
[1719245052820,15.9772,126.52,126.41,636.9]
[1719245053064,23.97,126.51,126.38,6.3808]
[1719245053355,23.8,126.48,126.38,6.3808]
[1719245053507,0.17,126.47,126.38,6.3808]
[1719245053714,0.34,126.47,126.38,6.3808]
[1719245054209,0.17,126.46,126.34,261.54129045]
[1719245054412,0.17,126.46,126.29,18.31187582]
[1719245054413,0.17,126.46,126.29,275.5919]
[1719245054613,55.32,126.45,126.29,275.5919]
[1719245054916,0.34,126.44,126.29,275.5919]
[1719245055427,23.8,126.43,126.29,275.5919]
[1719245055630,0.34,126.42,126.29,22.2919]
[1719245057719,23.8,126.41,126.26,383.6]
[1719245057923,0.34,126.4,126.24,21.7118]
[1719245059267,23.8,126.37,126.24,21.7118]
[1719245059416,0.34,126.36,126.24,21.7118]
[1719245060930,6.3019,126.39,126.25,0.34]
[1719245061830,6.3019,126.39,126.25,45.34]
[1719245062251,6.3019,126.39,126.24,21.7118]
[1719245062551,30.1019,126.39,126.24,21.7118]
[1719245062743,45.17,126.38,126.24,21.7118]
[1719245063347,0.17,126.37,126.24,21.7118]
[1719245064149,0.34,126.38,126.25,0.17]
[1719245064456,0.34,126.38,126.25,45.17]
[1719245066361,6.3019,126.39,126.25,45.17]
[1719245066667,6.3019,126.39,126.26,0.17]
[1719245068833,0.17,126.38,126.26,0.17]
[1719245069240,6.3019,126.39,126.26,0.17]
[1719245069654,23.77,126.38,126.25,45.0]
[1719245070355,6.3019,126.39,126.26,0.17]
[1719245070664,6.3019,126.39,126.26,28.09]
[1719245070848,6.53317912,126.42,126.27,45.0]
[1719245071159,45.5573,126.43,126.29,6.0023]
[1719245071364,51.94655881,126.43,126.3,65.34]
[1719245071873,51.94655881,126.43,126.3,45.34]
[1719245072359,51.94655881,126.43,126.3,45.17]
[1719245072661,51.94655881,126.43,126.25,6.2679]
[1719245072965,51.94655881,126.43,126.26,20.0]
[1719245072966,0.34,126.42,126.26,20.0]
[1719245073157,0.34,126.42,126.26,27.9197]
[1719245073461,0.34,126.42,126.26,20.0]
[1719245073861,0.17,126.42,126.27,73.0581]
[1719245074060,51.94655881,126.43,126.28,20.0]
[1719245074245,51.94655881,126.43,126.29,45.34]
[1719245074439,51.94655881,126.43,126.29,45.0]
[1719245074656,51.94655881,126.43,126.3,0.34]
[1719245075062,21.7873,126.43,126.31,16.465]
[1719245075364,21.7873,126.43,126.32,65.34]
[1719245076154,6.1489,126.43,126.33,6.3634]
[1719245076363,6.1489,126.43,126.34,45.34]
[1719245076563,6.1489,126.43,126.34,45.0]
[1719245077361,0.17,126.42,126.34,45.0]
[1719245077548,0.17,126.42,126.29,6.3152]
[1719245078164,0.34,126.42,126.29,6.3152]
[1719245078768,0.34,126.42,126.3,45.0]
[1719245078942,0.34,126.42,126.3,45.17]
[1719245080172,0.34,126.42,126.31,0.17]
[1719245080350,6.1489,126.43,126.31,0.17]
[1719245080557,6.1489,126.43,126.31,20.17]
[1719245080759,6.1489,126.43,126.32,45.17]
[1719245080964,6.1489,126.43,126.33,0.17]
[1719245081365,6.1489,126.43,126.33,20.17]
[1719245081564,6.1489,126.43,126.34,45.17]
[1719245081779,6.1489,126.43,126.35,0.17]
[1719245082572,6.1489,126.43,126.34,45.17]
[1719245082766,6.1489,126.43,126.35,0.17]
[1719245083169,21.76,126.47,126.35,16.1371]
[1719245083364,21.76,126.47,126.37,6.66]
[1719245083572,6.0431,126.47,126.38,45.34]
[1719245084069,16.2587,126.51,126.4,7.9111]
[1719245084070,22.8804,126.51,126.4,7.9111]
[1719245084374,22.8804,126.51,126.41,65.34]
[1719245085476,6.122,126.54,126.41,96.9]
[1719245087066,6.122,126.54,126.43,15.2966]
[1719245087266,6.122,126.54,126.44,45.34]
[1719245087450,6.122,126.54,126.45,20.0]
[1719245087656,6.122,126.54,126.46,45.0]
[1719245089574,6.122,126.54,126.4,390.4]
[1719245089772,0.34,126.53,126.41,20.0]
[1719245090187,0.17,126.53,126.41,20.0]
[1719245090660,6.122,126.54,126.41,27.9106]
[1719245090978,6.122,126.54,126.42,45.34]
[1719245091356,6.122,126.54,126.43,26.1993]
[1719245091568,6.122,126.54,126.44,45.34]
[1719245091761,6.122,126.54,126.45,20.0]
[1719245091962,6.122,126.54,126.46,45.34]
[1719245092679,6.122,126.54,126.45,20.0]
[1719245092860,6.122,126.54,126.44,20.0]
[1719245093782,6.122,126.54,126.45,45.0]
[1719245094076,6.122,126.54,126.46,0.17]
[1719245094682,6.122,126.54,126.44,20.0]
[1719245095378,6.122,126.54,126.41,421.96]
[1719245095379,0.17,126.53,126.41,421.96]
[1719245095580,0.34,126.53,126.41,390.4]
[1719245096659,0.34,126.53,126.42,0.17]
[1719245097071,6.122,126.54,126.42,0.17]
[1719245097575,6.122,126.54,126.42,20.17]
[1719245098251,6.122,126.54,126.43,45.17]
[1719245098558,6.122,126.54,126.44,0.17]
[1719245099167,0.17,126.53,126.44,0.17]
[1719245099479,0.17,126.53,126.43,45.17]
[1719245099653,0.34,126.53,126.43,45.17]
[1719245099857,0.17,126.53,126.43,45.17]
[1719245100055,0.34,126.53,126.43,45.17]
[1719245100453,0.34,126.53,126.39,275.3626]
[1719245100454,15.8478,126.52,126.39,259.1]
[1719245100655,0.34,126.51,126.39,259.1]
[1719245101374,0.34,126.51,126.37,390.4]
[1719245101375,23.77,126.48,126.37,390.4]
[1719245101684,15.3717,126.46,126.36,4.48821483]
[1719245102051,22.6189,126.5,126.38,37.7525]
[1719245102454,6.1038,126.53,126.38,63.7925]
[1719245102681,16.2366,126.54,126.44,30.352]
[1719245102981,16.2366,126.54,126.45,45.34]
[1719245104180,16.2366,126.54,126.45,45.0]
[1719245104363,0.17,126.53,126.45,45.0]
[1719245104562,0.34,126.53,126.45,45.0]
[1719245105076,16.2366,126.54,126.45,45.0]
[1719245105580,16.2366,126.54,126.46,0.17]
[1719245105778,16.2366,126.54,126.46,0.34]
[1719245107656,16.2366,126.54,126.41,34.1481]
[1719245107868,16.2366,126.54,126.42,20.0]
[1719245108172,0.34,126.53,126.42,20.0]
[1719245108872,6.5954,126.52,126.4,16.1137]
[1719245109079,0.34,126.51,126.4,16.1137]
[1719245109386,0.17,126.51,126.4,16.1137]
[1719245109679,6.5954,126.52,126.4,16.1137]
[1719245109865,6.5954,126.52,126.41,20.0]
[1719245110067,6.5954,126.52,126.42,31.56]
[1719245110265,6.5954,126.52,126.43,20.0]
[1719245110957,6.5954,126.52,126.46,7.9075]
[1719245111164,16.2366,126.54,126.47,20.17]
[1719245111466,16.2366,126.54,126.47,0.17]
[1719245111669,16.2366,126.54,126.46,65.34]
[1719245112274,6.29,126.63,126.48,79.5396]
[1719245112484,6.29,126.63,126.53,19.7576]
[1719245112682,6.29,126.63,126.54,0.34]
[1719245114968,6.29,126.63,126.54,0.17]
[1719245115410,6.29,126.63,126.54,0.34]
[1719245116571,6.29,126.63,126.54,8.2424]
[1719245116844,6.29,126.63,126.55,65.0]
[1719245117003,6.29,126.63,126.56,0.34]
[1719245119214,6.29,126.63,126.56,8.2412]
[1719245119502,6.4237,126.72,126.59,31.56]
[1719245119705,6.4237,126.72,126.6,20.34]
[1719245119907,6.4237,126.72,126.6,65.34]
[1719245120815,6.4237,126.72,126.6,73.2384]
[1719245122009,6.4237,126.72,126.63,7.897]
[1719245122219,6.4237,126.72,126.65,7.8953]
[1719245122423,16.5287,126.73,126.66,73.2349]
[1719245122628,16.5287,126.73,126.66,65.34]
[1719245122914,16.5287,126.73,126.63,31.56]
[1719245123092,16.5287,126.73,126.61,390.4]
[1719245123301,6.4596,126.72,126.58,263.62296343]
[1719245123609,5.9596,126.72,126.59,20.0]
[1719245123813,0.17,126.71,126.59,20.0]
[1719245123984,0.34,126.71,126.58,263.62296343]
[1719245124615,16.6485,126.7,126.58,263.62296343]
[1719245124832,16.6485,126.68,126.52,390.4]
[1719245124988,0.34,126.67,126.53,20.0]
[1719245125192,16.6485,126.66,126.53,20.0]
[1719245125394,0.34,126.65,126.51,20.0]
[1719245125594,0.34,126.65,126.5,259.1]
[1719245126224,15.5025,126.64,126.48,390.4]
[1719245126424,15.8425,126.63,126.48,390.4]
[1719245126629,69.11,126.65,126.48,390.4]
[1719245126630,6.4865,126.6,126.48,390.4]
[1719245126928,0.34,126.59,126.45,259.1]
[1719245127525,0.34,126.59,126.42,37.9271]
[1719245127526,15.9036,126.57,126.42,31.56]
[1719245127696,0.34,126.56,126.42,31.56]
[1719245128239,15.9036,126.57,126.42,31.56]
[1719245128409,15.9036,126.57,126.44,19.7714]
[1719245128612,15.9036,126.57,126.45,31.49]
[1719245128936,15.9036,126.57,126.47,7.9068]
[1719245129225,15.9036,126.57,126.48,0.17]
[1719245129430,15.9036,126.57,126.48,45.0]
[1719245129730,15.9036,126.57,126.45,31.49]
[1719245129936,0.17,126.56,126.44,390.4]
[1719245130320,0.34,126.56,126.44,390.4]
[1719245130836,0.34,126.56,126.41,31.49]
[1719245131329,0.34,126.56,126.42,45.17]
[1719245131527,0.34,126.56,126.42,65.17]
[1719245131727,6.1718,126.55,126.42,65.17]
[1719245132535,6.1718,126.55,126.43,7.9094]
[1719245132744,6.1718,126.55,126.44,65.17]
[1719245133037,6.1718,126.55,126.45,0.17]
[1719245133406,0.17,126.54,126.45,0.17]
[1719245133613,6.1718,126.55,126.45,0.17]
[1719245134615,6.1718,126.55,126.41,47.3936]
[1719245134817,6.1718,126.55,126.42,27.9099]
[1719245135313,6.1718,126.55,126.42,20.0]
[1719245135912,6.1718,126.55,126.43,45.34]
[1719245136122,6.1718,126.55,126.44,20.0]
[1719245136318,6.1718,126.55,126.45,45.34]
[1719245136519,6.1718,126.55,126.46,20.0]
[1719245136713,6.1718,126.55,126.47,45.34]
[1719245137314,6.1718,126.55,126.47,45.17]
[1719245137527,6.1718,126.55,126.42,31.49]
[1719245137722,6.1718,126.55,126.43,20.0]
[1719245138813,6.1718,126.55,126.44,45.17]
[1719245139017,6.1718,126.55,126.45,0.17]
[1719245139431,0.34,126.54,126.43,20.0]
[1719245139640,6.1718,126.55,126.43,20.0]
[1719245140023,0.17,126.54,126.43,20.0]
[1719245140225,0.34,126.54,126.43,20.0]
[1719245140636,6.1718,126.55,126.44,45.34]
[1719245141228,0.34,126.54,126.44,45.34]
[1719245141736,0.17,126.54,126.44,45.34]
[1719245141944,6.1718,126.55,126.44,45.34]
[1719245142148,6.1718,126.55,126.45,20.0]
[1719245142320,6.1718,126.55,126.46,45.34]
[1719245142522,6.1718,126.55,126.47,20.0]
[1719245142740,6.1718,126.55,126.48,0.17]
[1719245142922,6.1718,126.55,126.48,45.34]
[1719245143122,15.9036,126.57,126.49,20.0]
[1719245143351,15.9036,126.57,126.5,45.34]
[1719245144635,15.9036,126.57,126.46,31.49]
[1719245144833,15.9036,126.57,126.47,20.0]
[1719245145427,15.9036,126.57,126.45,20.0]
[1719245146244,15.9036,126.57,126.46,73.0159]
[1719245146418,15.9036,126.57,126.47,20.0]
[1719245146628,15.9036,126.57,126.44,390.4]
[1719245146827,6.5682,126.56,126.44,390.4]
[1719245147346,0.17,126.55,126.44,390.4]
[1719245147519,0.34,126.55,126.44,390.4]
[1719245148141,6.5682,126.56,126.44,390.4]
[1719245148648,0.17,126.55,126.41,47.3936]
[1719245148942,6.5682,126.56,126.42,20.0]
[1719245149133,6.5682,126.56,126.42,27.9096]
[1719245149320,6.5682,126.56,126.42,20.0]
[1719245149845,6.5682,126.56,126.43,45.17]
[1719245150021,6.5682,126.53,126.44,20.0]
[1719245150221,6.5682,126.53,126.42,20.0]
[1719245150449,6.5682,126.53,126.4,298.5]
[1719245150749,6.5682,126.53,126.41,20.0]
[1719245151642,6.5682,126.53,126.42,0.17]
[1719245151839,6.5682,126.53,126.42,0.34]
[1719245152022,6.5682,126.53,126.42,45.34]
[1719245154143,6.5682,126.53,126.42,53.2501]
[1719245154324,6.5682,126.53,126.43,20.0]
[1719245154526,6.5682,126.53,126.44,45.34]
[1719245158129,6.5682,126.53,126.4,330.02]
[1719245158330,0.17,126.52,126.41,20.0]
[1719245158931,6.2007,126.5,126.4,298.5]
[1719245159133,6.2007,126.5,126.4,39.4]
[1719245159442,16.5286,126.48,126.4,39.4]
[1719245159648,6.7446,126.47,126.36,4.48821483]
[1719245160264,6.7446,126.47,126.34,259.1]
[1719245160265,6.5746,126.47,126.34,259.1]
[1719245160426,23.77,126.45,126.3,259.1]
[1719245160630,15.0433,126.43,126.3,259.1]
[1719245161250,15.0433,126.43,126.33,51.3086]
[1719245161548,15.0433,126.43,126.32,7.9159]
[1719245161737,15.0433,126.43,126.31,7.9169]
[1719245161939,15.0433,126.43,126.32,45.17]
[1719245162246,15.0433,126.43,126.32,0.17]
[1719245163149,6.1807,126.42,126.3,259.1]
[1719245163450,6.1807,126.4,126.3,259.1]
[1719245163630,37.93404607,126.49,126.25,902.7]
[1719245163631,6.1807,126.38,126.25,902.7]
[1719245163833,6.1807,126.38,126.26,20.0]
[1719245164153,6.1807,126.38,126.26,48.02189574]
[1719245164355,6.1807,126.38,126.26,8.22259574]
[1719245166143,6.6374,126.35,126.26,8.22259574]
[1719245166447,6.6374,126.35,126.23,390.4]
[1719245166448,15.6244,126.34,126.23,390.4]
[1719245166642,15.7944,126.34,126.24,20.0]
[1719245166849,15.6244,126.34,126.23,7.9219]
[1719245167038,6.6374,126.35,126.29,31.52]
[1719245167950,16.6031,126.37,126.29,31.52]
[1719245168136,16.6031,126.37,126.3,65.34]
[1719245169929,15.09,126.4,126.33,31.52]
[1719245170149,6.4687,126.41,126.34,73.2549]
[1719245170329,15.9497,126.44,126.35,7.9144]
[1719245170330,22.4745,126.44,126.35,7.9144]
[1719245170649,22.4745,126.44,126.36,65.34]
[1719245170856,22.4745,126.44,126.37,65.0]
[1719245171053,22.4745,126.44,126.38,0.34]
[1719245171251,6.5248,126.44,126.38,0.17]
[1719245171437,6.5248,126.44,126.38,65.34]
[1719245171947,6.5003,126.49,126.38,132.5812]
[1719245172251,6.5003,126.49,126.41,31.52]
[1719245172439,6.5003,126.49,126.42,65.34]
[1719245173233,6.5003,126.49,126.42,73.2498]
[1719245173451,6.0885,126.53,126.45,31.52]
[1719245173657,16.0061,126.55,126.46,85.1084]
[1719245173853,16.0061,126.55,126.46,112.8]
[1719245174159,16.0061,126.55,126.48,7.9061]
[1719245174339,6.5513,126.57,126.49,65.34]
[1719245174757,6.5513,126.57,126.49,73.2456]
[1719245174931,15.6412,126.59,126.5,19.7626]
[1719245175131,6.5513,126.62,126.51,96.81]
[1719245176848,6.6221,126.63,126.52,0.17]
[1719245177264,0.17,126.62,126.52,0.17]
[1719245177645,6.6221,126.63,126.52,0.17]
[1719245178051,0.17,126.62,126.52,0.17]
[1719245178941,6.6221,126.63,126.52,0.34]
[1719245181334,6.6221,126.63,126.54,7.9024]
[1719245181541,6.6221,126.63,126.55,65.34]
[1719245181746,6.6221,126.63,126.55,65.0]
[1719245181948,6.6221,126.63,126.56,0.34]
[1719245182462,6.6221,126.63,126.56,0.17]
[1719245182650,6.6221,126.63,126.5,20.0]
[1719245182860,0.34,126.62,126.5,20.0]
[1719245183057,0.17,126.62,126.5,20.0]
[1719245183263,0.17,126.62,126.49,20.0]
[1719245183437,0.34,126.62,126.49,20.0]
[1719245184261,0.34,126.62,126.48,39.35]
[1719245184463,0.17,126.62,126.48,47.2562]
[1719245184959,0.17,126.62,126.48,39.35]
[1719245185261,6.2464,126.6,126.48,39.35]
[1719245185453,15.5655,126.61,126.46,390.4]
[1719245185454,6.2464,126.57,126.46,390.4]
[1719245185644,6.2464,126.57,126.43,259.1]
[1719245186255,6.2464,126.57,126.43,267.0094]
[1719245186456,6.2464,126.57,126.43,259.1]
[1719245186647,0.34,126.56,126.43,259.1]
[1719245186844,21.8119,126.55,126.43,259.1]
[1719245187160,0.34,126.54,126.43,259.1]
[1719245188770,0.17,126.54,126.43,259.1]
[1719245189066,21.8119,126.55,126.43,259.1]
[1719245189364,0.34,126.54,126.44,0.17]
[1719245189562,0.34,126.54,126.4,4.1939252]
[1719245190567,0.17,126.54,126.4,12.1051252]
[1719245190767,0.34,126.54,126.41,20.0]
[1719245190943,0.34,126.54,126.4,4.1939252]
[1719245191138,0.34,126.54,126.41,45.17]
[1719245191947,38.9592,126.53,126.4,4.1939252]
[1719245192243,21.7348,126.47,126.36,390.4]
[1719245192452,21.7348,126.47,126.32,259.1]
[1719245192453,0.17,126.46,126.32,259.1]
[1719245192661,6.3394,126.45,126.32,259.1]
[1719245192870,0.17,126.44,126.32,259.1]
[1719245193069,6.3394,126.45,126.32,259.1]
[1719245194050,6.3394,126.45,126.33,19.7889]
[1719245194255,6.3394,126.45,126.34,31.47]
[1719245194767,6.3394,126.45,126.35,73.0843]
[1719245194940,6.3394,126.45,126.35,73.2543]
[1719245195143,6.3394,126.45,126.35,65.34]
[1719245195463,6.3394,126.45,126.36,27.6979]
[1719245195651,6.3394,126.45,126.37,73.2532]
[1719245195853,6.3394,126.45,126.37,65.34]
[1719245197055,6.3394,126.45,126.37,73.2531]
[1719245197259,6.3394,126.45,126.37,65.34]
[1719245197755,6.3394,126.45,126.37,73.253]
[1719245198156,6.3394,126.45,126.37,65.34]
[1719245198351,6.3394,126.45,126.34,390.4]
[1719245199442,6.3394,126.45,126.35,7.9144]
[1719245199647,6.3394,126.45,126.34,390.4]
[1719245199861,6.3394,126.45,126.35,65.34]
[1719245200756,6.3394,126.45,126.35,116.5955]
[1719245201070,6.3394,126.45,126.35,96.81]
[1719245201251,6.3394,126.45,126.35,20.0]
[1719245201446,6.3394,126.45,126.34,390.4]
[1719245202667,6.3394,126.45,126.32,267.0162]
[1719245202867,6.3394,126.45,126.33,27.9156]
[1719245203256,6.3394,126.45,126.34,45.0]
[1719245203457,6.3394,126.45,126.35,28.2544]
[1719245203663,6.3394,126.45,126.36,45.0]
[1719245203872,6.3394,126.45,126.37,20.34]
[1719245204168,6.3394,126.45,126.38,45.0]
[1719245204355,6.3394,126.45,126.39,20.34]
[1719245204669,6.3394,126.45,126.4,45.0]
[1719245204872,6.3394,126.45,126.41,0.34]
[1719245205469,6.3394,126.45,126.41,0.17]
[1719245207276,6.3394,126.45,126.41,0.34]
[1719245208253,15.1892,126.47,126.41,20.34]
[1719245208468,15.1892,126.47,126.42,45.0]
[1719245208660,6.0836,126.49,126.43,0.34]
[1719245209075,16.1726,126.51,126.43,0.34]
[1719245209376,16.1726,126.51,126.43,20.34]
[1719245209575,16.1726,126.51,126.44,45.0]
[1719245209779,16.1726,126.51,126.45,0.34]
[1719245209960,16.1726,126.51,126.45,0.17]
[1719245210166,16.1726,126.51,126.44,45.0]
[1719245210356,6.1839,126.5,126.36,390.4]
[1719245210560,6.1839,126.5,126.37,20.0]
[1719245210561,6.0139,126.5,126.37,20.0]
[1719245210777,6.0139,126.5,126.37,27.9131]
[1719245211162,6.0139,126.5,126.37,20.0]
[1719245211482,6.0139,126.5,126.36,39.7839]
[1719245211683,6.0139,126.5,126.38,19.781]
[1719245211856,6.0139,126.5,126.39,20.17]
[1719245212476,6.0139,126.5,126.36,20.0]
[1719245212662,6.0139,126.5,126.36,27.9134]
[1719245212863,6.0139,126.5,126.36,39.7846]
[1719245213068,6.0139,126.5,126.36,47.6984]
[1719245213266,6.0139,126.5,126.36,39.7846]
[1719245213467,6.0139,126.5,126.36,20.0]
[1719245213780,6.0139,126.5,126.35,24.72601639]
[1719245213970,6.0139,126.5,126.35,44.51131639]
[1719245214170,6.0139,126.5,126.36,7.9135]
[1719245214408,6.0139,126.5,126.37,20.0]
[1719245214876,6.0139,126.5,126.39,7.9116]
[1719245215058,6.0139,126.5,126.4,20.0]
[1719245215257,6.0139,126.5,126.39,7.9116]
[1719245215466,6.0139,126.5,126.38,39.4524]
[1719245215676,6.0139,126.5,126.39,27.9119]
[1719245215878,6.0139,126.5,126.4,45.34]
[1719245216266,6.0139,126.5,126.39,20.0]
[1719245217483,6.0139,126.5,126.42,27.6847]
[1719245217685,6.0139,126.5,126.43,65.34]
[1719245217909,6.0139,126.5,126.43,45.34]
[1719245218990,6.0139,126.5,126.43,0.34]
[1719245219157,6.0139,126.5,126.39,410.4]
[1719245219782,6.0139,126.5,126.39,390.4]
[1719245219957,16.1795,126.49,126.39,390.4]
[1719245220163,6.4743,126.48,126.39,390.4]
[1719245220369,16.1795,126.49,126.37,39.45]
[1719245220370,6.0713,126.45,126.37,39.45]
[1719245222362,6.0713,126.45,126.37,47.363]
[1719245222578,6.0713,126.45,126.37,39.45]
[1719245222782,6.0713,126.45,126.37,47.3627]